fUSD/lending_fUSD_20260221
["ID","MTS","AMOUNT","RATE_DAILY","PERIOD"]
[406242067,1771653068883,-500.0,0.00044797,120]
[406242068,1771653068892,-578.45903965,0.00044797,120]
[406242069,1771653068901,-500.0,0.00044797,120]
[406242070,1771653068911,-500.0,0.00044797,120]
[406242071,1771653068921,-500.0,0.00044797,120]
[406242072,1771653068930,-500.0,0.00044797,120]
[406242073,1771653068939,-386.47325886,0.00044797,120]
[406242074,1771653068948,-500.0,0.00044797,30]
[406242075,1771653068957,-500.0,0.00044797,30]
[406242076,1771653068966,-500.0,0.00044797,30]
[406242077,1771653068975,-500.0,0.00044797,30]
[406242078,1771653068985,-447.84,0.00044797,30]
[406242079,1771653068995,-162.22,0.00044799,14]
[406242080,1771653069004,-152.03,0.000448,120]
[406242081,1771653069013,-1838.82036758,0.000448,120]
[406242082,1771653069022,-1131.0,0.000448,16]
[406242083,1771653069031,-750.0,0.000448,16]
[406242084,1771653069041,-2600.0,0.000448,16]
[406242085,1771653069050,-200.0,0.000448,16]
[406242086,1771653069059,-500.0,0.0004481,120]
[406242087,1771653069068,-500.0,0.0004481,120]
[406242088,1771653069077,-500.0,0.00044812,120]
[406242089,1771653069086,-500.0,0.00044812,120]
[406242090,1771653069095,-500.0,0.00044812,120]
[406242091,1771653069104,-500.0,0.00044812,120]
[406242092,1771653069113,-368.0,0.00044812,120]
[406242093,1771653069122,-191.14813529,0.00044826,17]
[406242094,1771653069132,-500.0,0.00044838,120]
[406242095,1771653069141,-1122.59,0.00044838,120]
[406242096,1771653069151,-500.0,0.00044838,64]
[406242097,1771653069160,-500.0,0.00044838,64]
[406242098,1771653069169,-500.0,0.00044838,64]
[406242099,1771653069178,-623.6559736,0.00044838,66]
[406242100,1771653069187,-500.0,0.00044838,66]
[406242101,1771653069196,-500.0,0.00044838,68]
[406242102,1771653069205,-500.0,0.00044838,64]
[406242103,1771653069214,-500.0,0.00044838,69]
[406242104,1771653069224,-500.0,0.00044838,116]
[406242105,1771653069233,-500.0,0.00044838,66]
[406242106,1771653069243,-156.587,0.00044838,64]
[406242107,1771653069252,-156.587,0.00044838,64]
[406242108,1771653069262,-500.0,0.00044838,117]
[406242109,1771653069272,-162.380719,0.00044838,66]
[406242110,1771653069281,-500.0,0.00044838,68]
[406242111,1771653069292,-500.0,0.00044838,118]
[406242112,1771653069312,-168.3888056,0.00044838,68]
[406242113,1771653069332,-500.0,0.00044838,69]
[406242114,1771653069347,-500.0,0.00044838,119]
[406242115,1771653069358,-315.53708433,0.00044838,69]
[406242116,1771653069368,-156.587,0.00044838,64]
[406242117,1771653069379,-500.0,0.00044838,116]
[406242118,1771653069390,-162.380719,0.00044838,66]
[406242119,1771653069400,-500.0,0.00044838,64]
[406242120,1771653069411,-500.0,0.00044838,117]
[406242121,1771653069421,-250.0,0.00044838,64]
[406242122,1771653069431,-168.3888056,0.00044838,68]
[406242123,1771653069441,-500.0,0.00044838,66]
[406242124,1771653069452,-250.0,0.00044838,66]
[406242125,1771653069462,-500.0,0.00044838,118]
[406242126,1771653069472,-250.0,0.00044838,68]
[406242127,1771653069483,-500.0,0.00044838,68]
[406242128,1771653069495,-518.5,0.00044838,64]
[406242129,1771653069506,-500.0,0.00044838,119]
[406242130,1771653069517,-250.0,0.00044838,69]
[406242131,1771653069528,-500.0,0.00044838,69]
[406242132,1771653069537,-537.6845,0.00044838,66]
[406242133,1771653069548,-250.0,0.00044838,116]
[406242134,1771653069559,-208.81831802,0.00044838,64]
[406242135,1771653069570,-500.0,0.00044838,116]
[406242136,1771653069581,-271.45339363,0.00044838,68]
[406242137,1771653069592,-250.0,0.00044838,117]
[406242138,1771653069601,-500.0,0.00044838,117]
[406242139,1771653069613,-250.0,0.00044838,118]
[406242140,1771653069622,-500.0,0.00044838,118]
[406242141,1771653069632,-500.0,0.00044838,119]
[406242142,1771653069643,-250.0,0.00044838,119]
[406242143,1771653069655,-518.5,0.00044838,64]
[406242144,1771653069664,-537.6845,0.00044838,66]
[406242145,1771653069675,-557.5788265,0.00044838,68]
[406242146,1771653069685,-578.20924308,0.00044838,69]
[406242147,1771653069694,-151.0,0.00044838,64]
[406242148,1771653069705,-599.60298507,0.00044838,116]
[406242149,1771653069714,-151.0,0.00044838,66]
[406242150,1771653069724,-621.78829552,0.00044838,117]
[406242151,1771653069734,-644.79446246,0.00044838,118]
[406242152,1771653069744,-151.0,0.00044838,68]
[406242153,1771653069753,-668.65185757,0.00044838,119]
[406242154,1771653069763,-151.0,0.00044838,69]
[406242155,1771653069774,-151.0,0.00044838,116]
[406242156,1771653069785,-151.0,0.00044838,117]
[406242157,1771653069795,-151.0,0.00044838,118]
[406242158,1771653069804,-151.0,0.00044838,119]
[406242159,1771653069814,-500.0,0.00044839,120]
[406242160,1771653069824,-500.0,0.00044839,120]
[406242161,1771653069833,-403.6,0.00044839,120]
[406242162,1771653069843,-1122.59,0.00044839,120]
[406242163,1771653069852,-1122.59,0.00044839,120]
[406242164,1771653069866,-1122.59,0.00044839,120]
[406242165,1771653069876,-1122.59,0.00044839,120]
[406242166,1771653069887,-1122.59,0.00044839,120]
[406242167,1771653069898,-1122.59,0.00044839,120]
[406242168,1771653069912,-1122.59,0.00044839,120]
[406242169,1771653069922,-1122.72165971,0.00044839,120]
[406242170,1771653069933,-911.64591255,0.00044839,30]
[406242171,1771653069944,-500.0,0.00044839,30]
[406242172,1771653069953,-500.0,0.00044839,30]
[406242173,1771653069964,-500.0,0.00044839,30]
[406242174,1771653069976,-500.0,0.00044839,30]
[406242175,1771653069988,-151.0,0.00044839,30]
[406242176,1771653069999,-151.0,0.00044839,30]
[406242177,1771653070010,-151.0,0.00044839,30]
[406242178,1771653070022,-500.0,0.00044839,30]
[406242179,1771653070033,-250.0,0.00044839,30]
[406242180,1771653070044,-500.0,0.00044839,30]
[406242181,1771653070053,-520.0,0.00044839,30]
[406242182,1771653070063,-500.0,0.00044839,30]
[406242183,1771653070076,-151.0,0.00044839,30]
[406242184,1771653070087,-4000.0,0.00044839,30]
[406242185,1771653070099,-200.0,0.00044839,30]
[406242186,1771653070110,-546.7325,0.0004484,120]
[406242187,1771653070120,-523.1472,0.0004484,120]
[406242188,1771653070131,-436.717,0.0004484,120]
[406242189,1771653070142,-500.0,0.0004484,30]
[406242190,1771653070152,-500.0,0.0004484,30]
[406242191,1771653070162,-500.0,0.0004484,30]
[406242192,1771653070178,-500.0,0.0004484,30]
[406242193,1771653070194,-500.0,0.0004484,30]
[406242194,1771653070204,-500.0,0.0004484,30]
[406242195,1771653070215,-500.0,0.0004484,30]
[406242196,1771653070226,-312.63924954,0.0004484,30]
[406242197,1771653070235,-205.38048344,0.0004484,30]
[406242198,1771653070246,-200.34632247,0.0004484,30]
[406242199,1771653070256,-267.82900288,0.0004484,30]
[406242200,1771653070267,-271.61118782,0.0004484,30]
[406242201,1771653070276,-150.66853704,0.0004484,30]
[406242202,1771653070288,-184.38149303,0.0004484,30]
[406242203,1771653070299,-252.83380749,0.0004484,30]
[406242204,1771653070311,-188.5137067,0.0004484,30]
[406242205,1771653070323,-270.00017257,0.0004484,30]
[406242206,1771653070334,-159.16376581,0.0004484,30]
[406242207,1771653070343,-260.88408063,0.0004484,30]
[406242208,1771653070355,-200.87673457,0.0004484,30]
[406242209,1771653070366,-329.47,0.00044842,2]
[406242210,1771653070376,-493.40986002,0.00044842,2]
[406242211,1771653070387,-183.28558134,0.00044842,30]
[406242212,1771653070397,-159.6,0.00044842,120]
[406242213,1771653070408,-345.6,0.00044844,120]
[406242214,1771653070418,-202.55,0.00044848,120]
[406242215,1771653070428,-187.92,0.00044853,120]
[406242216,1771653070439,-183.42,0.00044853,120]
[406242217,1771653070448,-239.43,0.00044854,120]
[406242218,1771653070457,-150.0,0.0004486,120]
[406242219,1771653070467,-1646414.89465684,0.00044867,7]
[406242220,1771653070513,-3495.37719004,0.00044867,7]
[406242221,1771653070524,-2200.0,0.00044867,7]
[406242222,1771653070587,-320.0,0.00039767,30]
[406242223,1771653070596,-336.76854761,0.00039767,30]
[406242224,1771653070608,-339.23145239,0.00039767,30]
[406242225,1771653070617,-12799.88159774,0.00044867,7]
[406242226,1771653070779,-1844.77165021,0.00044867,7]
[406242229,1771653778484,-500.0,0.00015597,2]
[406242230,1771653778515,-500.0,0.00015597,2]
[406242231,1771653778548,-280.0,0.00015597,2]
[406242232,1771653931355,-520.0,0.00016,2]
[406242233,1771654011216,1000.0,0.00016,2]
[406242237,1771654063103,520.0,0.00016,2]
[406242239,1771654231965,-213.0,0.00016405,3]
[406242240,1771654231975,-200.0,0.00017138,2]
[406242241,1771654231985,-300.0,0.00017872,2]
[406242242,1771654231994,-1200.0,0.00017872,2]
[406242243,1771654232004,-307.71196301,0.00017873,2]
[406242244,1771654232016,-500.0,0.00017873,2]
[406242245,1771654232025,-500.0,0.00017873,2]
[406242246,1771654232035,-372.6257,0.00017873,2]
[406242247,1771654232044,-297.46778061,0.00017973,2]
[406242248,1771654232053,-164.16786887,0.00017973,2]
[406242249,1771654232062,-500.0,0.00017973,2]
[406242250,1771654232072,-92.53431951,0.00017973,2]
[406242251,1771654232086,-408.0845901,0.00017973,2]
[406242252,1771654232095,-38.81548235,0.00017973,2]
[406242259,1771654240217,-462.16844451,0.00017973,2]
[406242260,1771654240228,-500.0,0.00017973,2]
[406242261,1771654240237,-97.63317283,0.00017973,2]
[406242262,1771654240249,-402.36682717,0.00017973,2]
[406242263,1771654240259,-200.0,0.00018045,2]
[406242264,1771654240268,-195.0,0.00018045,2]
[406242265,1771654240278,-293.63317284,0.00018421,2]
[406242266,1771654240651,-590.39410538,0.00018421,2]
[406242267,1771654240662,-453.19896023,0.00018421,2]
[406242268,1771654240672,-963.0989,0.00024166,2]
[406242269,1771654240683,-150.0,0.00024266,2]
[406242270,1771654240693,-5112.01,0.00024658,2]
[406242271,1771654240703,-150.99,0.00024658,2]
[406242272,1771654240713,-150.0,0.00024658,2]
[406242273,1771654240723,-150.0,0.0002589,2]
[406242274,1771654240735,-150.0,0.00027185,2]
[406242275,1771654240745,-150.0,0.00027266,2]
[406242276,1771654240754,-150.0,0.00028544,2]
[406242277,1771654240765,-1000.0,0.00029,2]
[406242278,1771654240774,-150.0,0.00029971,2]
[406242279,1771654240784,-1590.0,0.000312,2]
[406242280,1771654240793,-1000.0,0.000327,2]
[406242281,1771654240802,-1590.30811988,0.000349,2]
[406242282,1771654240812,-2466.07,0.00034948,2]
[406242283,1771654240823,-152.07,0.0003511,30]
[406242284,1771654240832,-200.0,0.0003537,2]
[406242285,1771654240841,-1458.276,0.00036853,46]
[406242286,1771654240851,-177.134,0.00036853,46]
[406242287,1771654240861,-258.31527199,0.000372,120]
[406242288,1771654240871,-258.31527198,0.000372,120]
[406242289,1771654240881,-258.31527198,0.000372,120]
[406242290,1771654240891,-258.31527198,0.00038055,120]
[406242291,1771654240902,-1000.0,0.00038557,20]
[406242292,1771654240912,-507.0,0.00038735,30]
[406242293,1771654240923,-957.0,0.00038735,30]
[406242294,1771654240933,-260.84205391,0.00038904,5]
[406242295,1771654240942,-13507.26,0.00038951,120]
[406242296,1771654240955,-877.47,0.00038996,2]
[406242297,1771654240966,-150.0,0.00039007,2]
[406242298,1771654240975,-150.0,0.00039007,120]
[406242299,1771654240987,-200.0,0.00039024,2]
[406242300,1771654240997,-33217.92,0.00039037,2]
[406242301,1771654241009,-6263.04,0.00039148,2]
[406242302,1771654241019,-152.07,0.00039391,30]
[406242303,1771654241031,-167.19,0.00040126,2]
[406242304,1771654241040,-169.97,0.0004057,2]
[406242305,1771654241051,-200.0,0.00040844,120]
[406242306,1771654241062,-746.0,0.00040844,30]
[406242307,1771654241073,-328.9399067,0.00040845,2]
[406242308,1771654241083,-177.10361964,0.00040849,31]
[406242309,1771654241094,-500.0,0.00040849,31]
[406242310,1771654241104,-313.0392698,0.00040849,31]
[406242311,1771654241115,-566.89867006,0.00040849,31]
[406242312,1771654241125,-226.25618866,0.00040849,31]
[406242313,1771654241135,-566.89867006,0.00040849,31]
[406242314,1771654241146,-566.89867006,0.00040849,31]
[406242315,1771654241156,-566.89867006,0.00040849,31]
[406242316,1771654241167,-566.89867006,0.00040849,31]
[406242317,1771654241177,-566.89867006,0.00040849,31]
[406242318,1771654241187,-566.89867006,0.00040849,31]
[406242319,1771654241201,-566.89867006,0.00040849,31]
[406242320,1771654241210,-566.89867006,0.00040849,31]
[406242321,1771654241219,-566.89867006,0.00040849,31]
[406242322,1771654241228,-328.70528864,0.00040849,31]
[406242323,1771654241237,-566.89867006,0.00040849,31]
[406242324,1771654241247,-566.89867006,0.00040849,31]
[406242325,1771654241256,-566.89867006,0.00040849,31]
[406242326,1771654241267,-566.89867006,0.00040849,31]
[406242327,1771654241276,-566.89867006,0.00040849,31]
[406242328,1771654241286,-566.89867006,0.00040849,31]
[406242329,1771654241296,-1583963.03669272,0.0004085,2]
[406242335,1771654243237,-507.0,0.00039037,30]
[406242336,1771654243247,-1748.445,0.0004085,2]
[406242354,1771654246058,-504.5,0.0004085,60]
[406242355,1771654246067,-6809.03178196,0.0004085,2]
[406242357,1771654424081,521.0,0.00016,2]
[406242358,1771654782839,521.0,0.00016,2]
[406242374,1771655113597,4126.333237,0.00016082,2]
[406242378,1771655119473,873.676763,0.00013,2]
[406242379,1771655119495,1312.16428988,0.00013,2]
[406242380,1771655263540,402.25093897,0.00013,15]
[406242381,1771655285052,308.5201231,0.000125,2]
[406242382,1771655372130,-730.78073349,0.000162,5]
[406242391,1771655432160,-4269.22908972,0.000162,5]
[406242393,1771655432169,-1200.0,0.00016999,2]
[406242395,1771655432178,-150.0,0.00016999,2]
[406242396,1771655432188,-328.70528864,0.00016999,2]
[406242397,1771655432198,-183951.42662663,0.00017,2]
[406242398,1771655432271,-11170.86862714,0.00017,2]
[406242399,1771655432284,-444.6104998,0.00017,2]
[406242400,1771655432332,-2371.5,0.00017,2]
[406242413,1771655438354,-2944.77445898,0.00017,2]
[406242414,1771655438414,-242271.34517778,0.00017,2]
[406242415,1771655438423,-16431.07664757,0.0001766,2]
[406242416,1771655438433,-252.96525959,0.0001776,2]
[406242417,1771655438442,-1004.67257269,0.0001786,2]
[406242418,1771655438452,-500.0,0.00017873,2]
[406242419,1771655438461,-453.19896023,0.00017873,2]
[406242420,1771655438474,-167.41603795,0.00017873,2]
[406242421,1771655438483,-500.0,0.00017973,2]
[406242422,1771655438493,-500.50855099,0.00017973,2]
[406242423,1771655438502,-194.01074461,0.0001799,2]
[406242424,1771655438512,-572.74230166,0.00017999,2]
[406242425,1771655438521,-313.0392698,0.00017999,2]
[406242426,1771655438531,-572.74230166,0.00017999,2]
[406242427,1771655438540,-226.25618866,0.00017999,2]
[406242428,1771655438549,-500.0,0.00017999,2]
[406242429,1771655438558,-572.74230166,0.00017999,2]
[406242430,1771655438567,-572.74230166,0.00017999,2]
[406242431,1771655438577,-572.74230166,0.00017999,2]
[406242432,1771655438586,-572.74230166,0.00017999,2]
[406242433,1771655438595,-572.74230166,0.00017999,2]
[406242434,1771655438604,-572.74230166,0.00017999,2]
[406242435,1771655438614,-572.74230166,0.00017999,2]
[406242436,1771655438624,-576.83331811,0.00017999,2]
[406242437,1771655438633,-576.83331811,0.00017999,2]
[406242438,1771655438642,-576.83331811,0.00017999,2]
[406242439,1771655438652,-576.83331811,0.00017999,2]
[406242440,1771655438662,-576.83331811,0.00017999,2]
[406242441,1771655438675,-576.83331811,0.00017999,2]
[406242442,1771655438685,-576.83331811,0.00017999,2]
[406242443,1771655438694,-576.83331811,0.00017999,2]
[406242444,1771655438708,-576.83331811,0.00017999,2]
[406242445,1771655438718,-644.56753349,0.00017999,2]
[406242446,1771655438727,-644.56753349,0.00017999,2]
[406242447,1771655438737,-644.56753349,0.00017999,2]
[406242448,1771655438746,-644.56753349,0.00017999,2]
[406242449,1771655438756,-1293830.79966066,0.00018,2]
[406242450,1771655438768,-301.22878301,0.00018,2]
[406242451,1771655438779,-1312.44985994,0.00018,2]
[406242452,1771655440394,-1530527.06516056,0.00018,2]
[406242453,1771655440404,-328.9399067,0.00018321,2]
[406242454,1771655440414,-500.71383968,0.00018421,2]
[406242455,1771655440423,-963.0989,0.0001956,2]
[406242456,1771655440433,-2500.0,0.0001966,2]
[406242457,1771655440442,-2500.0,0.0001966,2]
[406242458,1771655440451,-2500.0,0.0001966,2]
[406242459,1771655440460,-2500.0,0.0001966,2]
[406242460,1771655440469,-16431.07664757,0.00020131,2]
[406242461,1771655440478,-252.96525957,0.00021623,2]
[406242462,1771655440488,-16431.07664757,0.00022602,2]
[406242463,1771655440499,-1125.0,0.00023285,2]
[406242464,1771655440508,-150.0,0.00024658,2]
[406242465,1771655440517,-288.11,0.000247,7]
[406242466,1771655440526,-4017.36,0.000247,2]
[406242467,1771655440535,-252.96525957,0.00025486,2]
[406242468,1771655440544,-150.0,0.0002589,2]
[406242469,1771655440554,-264.498021,0.00026692,120]
[406242470,1771655440564,-150.0,0.00027185,2]
[406242471,1771655440573,-9999.99,0.00027185,2]
[406242472,1771655440582,-159.9049081,0.00027397,5]
[406242473,1771655440591,-528.55,0.00027565,2]
[406242474,1771655440601,-528.55,0.00027821,2]
[406242475,1771655440610,-528.55,0.00028077,2]
[406242476,1771655440619,-528.55,0.00028333,2]
[406242477,1771655440628,-150.0,0.00028544,2]
[406242478,1771655440637,-528.55,0.00028589,2]
[406242479,1771655440647,-500.0,0.00028792,120]
[406242480,1771655440656,-528.55,0.00028845,2]
[406242481,1771655440665,-528.55,0.00029101,2]
[406242482,1771655440675,-252.96525957,0.00029349,2]
[406242483,1771655440684,-528.55,0.00029357,2]
[406242484,1771655440695,-528.55,0.00029613,2]
[406242485,1771655440705,-528.55,0.00029869,2]
[406242486,1771655440714,-150.0,0.00029971,2]
[406242487,1771655440723,-528.55,0.00030125,2]
[406242488,1771655440732,-528.55,0.00030381,2]
[406242489,1771655440740,-528.55,0.00030637,2]
[406242490,1771655440750,-528.55,0.00030893,2]
[406242491,1771655440760,-528.55,0.00031149,2]
[406242492,1771655440769,-528.55,0.00031405,2]
[406242493,1771655440778,-150.0,0.0003147,2]
[406242494,1771655440788,-328.93990668,0.00031569,2]
[406242495,1771655440797,-528.55,0.00031661,2]
[406242496,1771655440806,-528.55,0.00031917,2]
[406242497,1771655440815,-528.55,0.00032173,2]
[406242498,1771655440824,-1500.0,0.00032239,120]
[406242499,1771655440833,-528.55,0.00032429,2]
[406242500,1771655440843,-150.0,0.00033,14]
[406242501,1771655440852,-150.0,0.00033043,2]
[406242502,1771655440862,-293.61,0.000331,14]
[406242503,1771655440871,-215.39,0.000331,14]
[406242504,1771655440880,-252.96525957,0.00033211,2]
[406242505,1771655440889,-2779.12,0.00033956,120]
[406242506,1771655440898,-9106.86,0.00033967,2]
[406242507,1771655440907,-250.0,0.00034,120]
[406242508,1771655440916,-150.0,0.00034521,30]
[406242509,1771655440925,-4017.36,0.000346,2]
[406242510,1771655440935,-150.0,0.00034696,2]
[406242511,1771655440943,-717.0,0.00035603,5]
[406242512,1771655440953,-177.10361964,0.00035616,7]
[406242513,1771655440962,-1218.68,0.000357,2]
[406242514,1771655440971,-250.0,0.00036,120]
[406242515,1771655440980,-166.66,0.00036221,30]
[406242516,1771655440990,-477.78804136,0.00036884,120]
[406242517,1771655440999,-152.0012827,0.00036884,120]
[406242518,1771655441008,-415.1551485,0.00036884,120]
[406242519,1771655441017,-166.66,0.00036984,30]
[406242520,1771655441026,-252.96525957,0.00037074,2]
[406242521,1771655441036,-258.31527199,0.000372,120]
[406242522,1771655441045,-258.31527198,0.000372,120]
[406242523,1771655441055,-258.31527198,0.000372,120]
[406242524,1771655441064,-258.31527198,0.00037687,120]
[406242525,1771655441073,-166.66,0.00037746,30]
[406242526,1771655441083,-164.51,0.00038,2]
[406242527,1771655441091,-250.0,0.00038,120]
[406242528,1771655441100,-7272.47,0.00038141,2]
[406242529,1771655441110,-1000.0,0.00038372,120]
[406242530,1771655441119,-288.11,0.000384,14]
[406242531,1771655441128,-215.39,0.000384,14]
[406242532,1771655441137,-166.66,0.00038509,30]
[406242533,1771655441146,-293.61,0.00039,14]
[406242534,1771655441156,-4017.36,0.00039,2]
[406242535,1771655441165,-500.0,0.00039135,2]
[406242536,1771655441174,-166.66,0.00039272,30]
[406242537,1771655441183,-10567.37,0.00039339,2]
[406242538,1771655441193,-1166.621,0.00039339,54]
[406242539,1771655441203,-177.134,0.00039339,54]
[406242540,1771655441212,-1218.68,0.000394,30]
[406242541,1771655441221,-5000.0,0.00039573,120]
[406242542,1771655441231,-1000.0,0.00039755,2]
[406242543,1771655441243,-320.0,0.00039774,30]
[406242544,1771655441252,-338.0,0.00039774,30]
[406242545,1771655441261,-2729.98419258,0.00039799,10]
[406242546,1771655441271,-500.0,0.00039799,30]
[406242547,1771655441282,-500.0,0.00039799,30]
[406242548,1771655441291,-500.0,0.00039799,30]
[406242549,1771655441300,-168.93,0.00039799,30]
[406242550,1771655441310,-500.0,0.00039799,30]
[406242551,1771655441320,-500.0,0.00039799,30]
[406242552,1771655441329,-500.0,0.00039799,30]
[406242553,1771655441338,-500.0,0.00039799,30]
[406242554,1771655441348,-500.0,0.00039799,30]
[406242555,1771655441357,-500.98925879,0.00039799,30]
[406242556,1771655441367,-500.0,0.00039799,30]
[406242557,1771655441375,-500.0,0.00039799,30]
[406242558,1771655441384,-500.0,0.00039799,30]
[406242559,1771655441393,-500.0,0.00039799,30]
[406242560,1771655441405,-2.25094186,0.00039799,30]
[406242561,1771655441583,-497.74905814,0.00039799,30]
[406242562,1771655441592,-500.0,0.00039799,30]
[406242563,1771655441610,-500.0,0.00039799,30]
[406242564,1771655441620,-204.59409661,0.00039799,30]
[406242585,1771655444820,-0.15066835,0.00025073,2]
[406242586,1771655444832,-8011.85484541,0.00025073,2]
[406242587,1771655444844,-966.3271354,0.00025073,2]
[406242590,1771655446249,-7452.74399841,0.00025073,2]
[406242591,1771655446259,-2462.38461624,0.00027544,2]
[406242601,1771655474725,520.0,0.00016,2]
[406242602,1771655940662,-159.29011275,0.000168,2]
[406242603,1771656239856,300.0,0.00016083,2]
[406242604,1771656442261,150.0,0.00017214,120]
[406242605,1771656631298,-497.55228091,0.00016464,2]
[406242606,1771656631374,-1091.96871909,0.00016464,2]
[406242607,1771656631384,-177.134,0.00016464,2]
[406242608,1771656631394,-288.0,0.00016464,2]
[406242609,1771656631403,-355.55376017,0.00016577,2]
[406242610,1771656631413,-151.0,0.00016597,2]
[406242611,1771656631423,-5772.88496145,0.000166,2]
[406242612,1771656631434,-6077.56169851,0.000166,2]
[406242613,1771656631446,-5880.0,0.000166,2]
[406242614,1771656631457,-1300.0,0.000166,2]
[406242615,1771656631468,-1705.94706233,0.000166,2]
[406242616,1771656631480,-405.23147994,0.000166,2]
[406242617,1771656631491,-4816.28098147,0.000166,2]
[406242618,1771656631502,-584.79955105,0.000166,2]
[406242619,1771656631514,-710.0,0.000166,2]
[406242620,1771656631525,-412.77728069,0.000166,2]
[406242621,1771656631536,-575.5876787,0.000166,2]
[406242622,1771656631547,-387.105,0.000166,2]
[406242633,1771656637450,-1343.44849106,0.000166,2]
[406242635,1771656637611,-3470028.3758148,0.000166,2]
[406242636,1771656637620,-300.0,0.00016689,2]
[406242637,1771656637629,-1200.0,0.00016689,2]
[406242638,1771656637639,-19471.05351546,0.0001669,2]
[406242639,1771656637648,-727.27512129,0.0001669,2]
[406242640,1771656637658,-16267.60274513,0.0001669,2]
[406242641,1771656637667,-258.68099281,0.0001669,2]
[406242642,1771656637676,-2729.98419258,0.00016699,2]
[406242643,1771656637686,-500.0,0.00016699,2]
[406242644,1771656637696,-537.50884095,0.00016699,2]
[406242645,1771656637705,-441.81846584,0.0001679,2]
[406242646,1771656637715,-276.98,0.00016799,2]
[406242647,1771656637724,-32860.742,0.000168,2]
[406242648,1771656637733,-2548.13,0.000168,2]
[406242649,1771656637742,-150.99,0.000168,2]
[406242650,1771656637752,-5112.01,0.000168,2]
[406242651,1771656637762,-249.0,0.00016898,2]
[406242652,1771656637774,-500.0,0.00016899,2]
[406242653,1771656637784,-500.0,0.00016899,2]
[406242654,1771656637793,-500.0,0.00016899,2]
[406242655,1771656637803,-500.0,0.00016899,2]
[406242656,1771656637812,-500.0,0.00016899,2]
[406242657,1771656637821,-500.0,0.00016899,2]
[406242658,1771656637830,-500.0,0.00016899,2]
[406242659,1771656637840,-500.0,0.00016899,2]
[406242660,1771656637849,-500.0,0.00016899,2]
[406242661,1771656637859,-500.0,0.00016899,2]
[406242662,1771656637868,-500.0,0.00016899,2]
[406242663,1771656637878,-500.0,0.00016899,2]
[406242664,1771656637887,-500.0,0.00016899,2]
[406242665,1771656637897,-500.0,0.00016899,2]
[406242666,1771656637907,-322.0,0.00017063,2]
[406242667,1771656637923,-276.98,0.00017073,2]
[406242668,1771656637932,-157.22,0.00017171,2]
[406242669,1771656637942,-150.0,0.00017214,2]
[406242670,1771656637952,-378.0,0.00017261,2]
[406242671,1771656637961,-2332.24,0.00017304,2]
[406242672,1771656637971,-277.00811006,0.00017347,2]
[406242673,1771656637982,-258.68099281,0.00017798,2]
[406242674,1771656637991,-500.0,0.00017808,2]
[406242675,1771656638001,-822.17856688,0.00017808,2]
[406242676,1771656638011,-822.17856688,0.00017808,2]
[406242677,1771656638020,-822.17856688,0.00017808,2]
[406242678,1771656638031,-822.17856688,0.00017808,2]
[406242679,1771656638040,-822.17856688,0.00017808,2]
[406242680,1771656638050,-822.17856688,0.00017808,2]
[406242681,1771656638059,-822.17856688,0.00017808,2]
[406242682,1771656638069,-822.17856688,0.00017808,2]
[406242683,1771656638079,-822.17856688,0.00017808,2]